fUST/lending_fUST_20250516
["ID","MTS","AMOUNT","RATE_DAILY","PERIOD"]
[361258328,1747399847761,-776.8,0.00013835,2]
[361258330,1747399847771,-450.0,0.00013835,2]
[361258332,1747399847781,-453.69983964,0.00013835,2]
[361258334,1747399847790,-450.0,0.00013835,2]
[361258336,1747399847799,-450.0,0.00013835,2]
[361258338,1747399847809,-450.0,0.00013835,2]
[361258340,1747399847818,-450.0,0.00013835,2]
[361258342,1747399847827,-531.85,0.00013835,2]
[361258344,1747399847836,-450.0,0.00013835,2]
[361258346,1747399847846,-450.0,0.00013835,2]
[361258348,1747399847856,-566.84,0.00013835,2]
[361258350,1747399847866,-450.0,0.00013835,2]
[361258352,1747399847876,-450.0,0.00013835,2]
[361258354,1747399847886,-450.0,0.00013835,2]
[361258356,1747399847895,-450.0,0.00013835,2]
[361258358,1747399847904,-450.0,0.00013835,2]
[361258360,1747399847913,-450.0,0.00013835,2]
[361258362,1747399847923,-450.0,0.00013835,2]
[361258364,1747399847931,-450.0,0.00013835,2]
[361258366,1747399847941,-450.0,0.00013835,2]
[361258368,1747399847951,-450.0,0.00013835,2]
[361258370,1747399847960,-450.0,0.00013835,2]
[361258372,1747399847969,-450.0,0.00013835,2]
[361258374,1747399847978,-450.0,0.00013835,2]
[361258376,1747399847987,-450.0,0.00013835,2]
[361258378,1747399847996,-536.55154392,0.00013835,2]
[361258380,1747399848006,-1445.01,0.00013835,2]
[361258382,1747399848015,-450.0,0.00013835,2]
[361258384,1747399848024,-450.0,0.00013835,2]
[361258386,1747399848033,-438.19957298,0.00013835,2]
[361258388,1747399848042,-616.19,0.00013835,2]
[361258389,1747399848051,-160.43817396,0.00013971,2]
[361258390,1747399848061,-340.52799134,0.00013972,2]
[361258391,1747399848071,-450.0,0.00013972,2]
[361258393,1747399848080,-425.83,0.00013972,2]
[361258395,1747399848090,-532.95237191,0.00013972,2]
[361258397,1747399848099,-450.0,0.00013972,2]
[361258399,1747399848109,-450.0,0.00013972,2]
[361258419,1747399848119,-450.0,0.00013972,2]
[361258420,1747399848294,-450.0,0.00013972,2]
[361258421,1747399848305,-532.35,0.00013972,2]
[361258422,1747399848315,-1177.01,0.00013972,2]
[361258423,1747399848325,-478.05,0.00013972,2]
[361258424,1747399848335,-1645.83,0.00013972,2]
[361258425,1747399848344,-450.0,0.00013972,2]
[361258426,1747399848354,-450.0,0.00013972,2]
[361258427,1747399848366,-450.0,0.00013972,2]
[361258428,1747399848377,-776.8,0.00013972,2]
[361258429,1747399848387,-450.0,0.00013972,2]
[361258430,1747399848396,-450.0,0.00013972,2]
[361258431,1747399848406,-228.01388839,0.00013972,2]
[361258432,1747399848415,-450.0,0.00013972,2]
[361258433,1747399848426,-450.0,0.00013972,2]
[361258434,1747399848435,-531.85,0.00013972,2]
[361258435,1747399848444,-450.0,0.00013972,2]
[361258436,1747399848454,-450.0,0.00013972,2]
[361258437,1747399848464,-566.84,0.00013972,2]
[361258438,1747399848474,-450.0,0.00013972,2]
[361258439,1747399848483,-450.0,0.00013972,2]
[361258440,1747399848493,-211.12561634,0.00013972,2]
[361258441,1747399848504,-450.0,0.00013972,2]
[361258442,1747399848514,-450.0,0.00013972,2]
[361258443,1747399848523,-450.0,0.00013972,2]
[361258444,1747399848533,-450.0,0.00013972,2]
[361258445,1747399848542,-450.0,0.00013972,2]
[361258446,1747399848552,-450.0,0.00013972,2]
[361258447,1747399848562,-450.0,0.00013972,2]
[361258448,1747399848571,-450.0,0.00013972,2]
[361258449,1747399848581,-450.0,0.00013972,2]
[361258450,1747399848591,-450.0,0.00013972,2]
[361258451,1747399848600,-450.0,0.00013972,2]
[361258452,1747399848610,-1445.01,0.00013972,2]
[361258453,1747399848619,-450.0,0.00013972,2]
[361258454,1747399848629,-450.0,0.00013972,2]
[361258455,1747399848639,-616.19,0.00013972,2]
[361258456,1747399848650,-2000.0,0.00014,2]
[361258457,1747399848660,-491.69862126,0.00014065,2]
[361258458,1747399848671,-450.0,0.00014109,2]
[361258459,1747399848682,-450.0,0.00014109,2]
[361258460,1747399848692,-450.0,0.00014109,2]
[361258461,1747399848702,-450.0,0.00014109,2]
[361258462,1747399848712,-450.0,0.00014109,2]
[361258463,1747399848722,-532.35,0.00014109,2]
[361258464,1747399848733,-1177.01,0.00014109,2]
[361258465,1747399848743,-478.05,0.00014109,2]
[361258466,1747399848753,-1645.83,0.00014109,2]
[361258467,1747399848762,-450.0,0.00014109,2]
[361258468,1747399848772,-450.0,0.00014109,2]
[361258469,1747399848782,-450.0,0.00014109,2]
[361258470,1747399848792,-776.8,0.00014109,2]
[361258471,1747399848802,-450.0,0.00014109,2]
[361258472,1747399848813,-450.0,0.00014109,2]
[361258473,1747399848822,-450.0,0.00014109,2]
[361258474,1747399848832,-551.55609215,0.00014109,2]
[361258475,1747399848842,-531.85,0.00014109,2]
[361258476,1747399848852,-450.0,0.00014109,2]
[361258477,1747399848863,-450.0,0.00014109,2]
[361258478,1747399848873,-566.84,0.00014109,2]
[361258479,1747399848884,-450.0,0.00014109,2]
[361258480,1747399848895,-450.0,0.00014109,2]
[361258481,1747399848905,-450.0,0.00014109,2]
[361258482,1747399848915,-450.0,0.00014109,2]
[361258483,1747399848925,-450.0,0.00014109,2]
[361258484,1747399848934,-450.0,0.00014109,2]
[361258485,1747399848944,-450.0,0.00014109,2]
[361258486,1747399848954,-450.0,0.00014109,2]
[361258487,1747399848963,-406.62700111,0.00014109,2]
[361258488,1747399848973,-450.0,0.00014109,2]
[361258489,1747399848983,-450.0,0.00014109,2]
[361258490,1747399848993,-450.0,0.00014109,2]
[361258491,1747399849003,-450.0,0.00014109,2]
[361258492,1747399849012,-1445.01,0.00014109,2]
[361258493,1747399849021,-450.0,0.00014109,2]
[361258494,1747399849031,-450.0,0.00014109,2]
[361258495,1747399849040,-616.19,0.00014109,2]
[361258496,1747399849050,-2236.0,0.00014165,2]
[361258497,1747399849059,-707.0,0.00014165,2]
[361258498,1747399849069,-404.0,0.00014165,2]
[361258499,1747399849079,-196.0,0.00014206,2]
[361258500,1747399849089,-469.823,0.00014221,2]
[361258501,1747399849099,-500.0,0.00014245,2]
[361258502,1747399849108,-500.0,0.00014245,2]
[361258503,1747399849121,-505.55301748,0.00014245,2]
[361258504,1747399849130,-450.0,0.00014246,2]
[361258505,1747399849140,-450.0,0.00014246,2]
[361258506,1747399849150,-450.0,0.00014246,2]
[361258507,1747399849160,-450.0,0.00014246,2]
[361258508,1747399849173,-450.0,0.00014246,2]
[361258509,1747399849186,-532.35,0.00014246,2]
[361258510,1747399849196,-1177.01,0.00014246,2]
[361258511,1747399849206,-478.05,0.00014246,2]
[361258512,1747399849217,-1645.83,0.00014246,2]
[361258513,1747399849226,-450.0,0.00014246,2]
[361258514,1747399849236,-209.97187034,0.00014246,2]
[361258515,1747399849247,-450.0,0.00014246,2]
[361258516,1747399849257,-776.8,0.00014246,2]
[361258517,1747399849267,-450.0,0.00014246,2]
[361258518,1747399849277,-450.0,0.00014246,2]
[361258519,1747399849287,-450.0,0.00014246,2]
[361258520,1747399849297,-531.85,0.00014246,2]
[361258521,1747399849307,-450.0,0.00014246,2]
[361258522,1747399849316,-450.0,0.00014246,2]
[361258523,1747399849326,-566.84,0.00014246,2]
[361258524,1747399849336,-450.0,0.00014246,2]
[361258525,1747399849346,-450.0,0.00014246,2]
[361258526,1747399849355,-450.0,0.00014246,2]
[361258527,1747399849366,-450.0,0.00014246,2]
[361258528,1747399849376,-450.0,0.00014246,2]
[361258529,1747399849385,-450.0,0.00014246,2]
[361258530,1747399849394,-450.0,0.00014246,2]
[361258531,1747399849404,-450.0,0.00014246,2]
[361258532,1747399849413,-450.0,0.00014246,2]
[361258533,1747399849422,-450.0,0.00014246,2]
[361258534,1747399849431,-450.0,0.00014246,2]
[361258535,1747399849441,-450.0,0.00014246,2]
[361258536,1747399849450,-1445.01,0.00014246,2]
[361258537,1747399849459,-450.0,0.00014246,2]
[361258538,1747399849469,-450.0,0.00014246,2]
[361258539,1747399849478,-616.19,0.00014246,2]
[361258540,1747399849488,-450.0,0.00014383,2]
[361258541,1747399849497,-151.0,0.00014383,2]
[361258542,1747399849507,-232.656731,0.00014383,2]
[361258543,1747399849516,-232.656731,0.00014383,2]
[361258544,1747399849525,-151.0,0.00014383,2]
[361258545,1747399849535,-450.0,0.00014383,2]
[361258546,1747399849544,-151.0,0.00014383,2]
[361258547,1747399849553,-450.0,0.00014383,2]
[361258548,1747399849563,-450.0,0.00014383,2]
[361258549,1747399849573,-450.0,0.00014383,2]
[361258550,1747399849582,-532.35,0.00014383,2]
[361258551,1747399849592,-1177.01,0.00014383,2]
[361258552,1747399849601,-478.05,0.00014383,2]
[361258553,1747399849610,-1645.83,0.00014383,2]
[361258554,1747399849620,-320.0530936,0.00014383,2]
[361258555,1747399849629,-450.0,0.00014383,2]
[361258556,1747399849639,-776.8,0.00014383,2]
[361258557,1747399849650,-450.0,0.00014383,2]
[361258558,1747399849659,-450.0,0.00014383,2]
[361258559,1747399849668,-450.0,0.00014383,2]
[361258560,1747399849678,-531.85,0.00014383,2]
[361258561,1747399849687,-450.0,0.00014383,2]
[361258562,1747399849696,-450.0,0.00014383,2]
[361258563,1747399849706,-566.84,0.00014383,2]
[361258564,1747399849715,-450.0,0.00014383,2]
[361258565,1747399849725,-450.0,0.00014383,2]
[361258566,1747399849734,-450.0,0.00014383,2]
[361258567,1747399849743,-450.0,0.00014383,2]
[361258568,1747399849752,-151.0,0.00014383,2]
[361258569,1747399849762,-151.0,0.00014383,2]
[361258570,1747399849771,-450.0,0.00014383,2]
[361258571,1747399849780,-450.0,0.00014383,2]
[361258572,1747399849792,-450.0,0.00014383,2]
[361258573,1747399849802,-450.0,0.00014383,2]
[361258574,1747399849812,-450.0,0.00014383,2]
[361258575,1747399849821,-450.0,0.00014383,2]
[361258576,1747399849830,-450.0,0.00014383,2]
[361258577,1747399849840,-450.0,0.00014383,2]
[361258578,1747399849850,-1445.01,0.00014383,2]
[361258579,1747399849859,-450.0,0.00014383,2]
[361258580,1747399849870,-421.50675987,0.00014383,2]
[361258581,1747399849879,-616.19,0.00014383,2]
[361258582,1747399849888,-151.0,0.0001452,2]
[361258583,1747399849897,-151.0,0.0001452,2]
[361258584,1747399849907,-151.0,0.0001452,2]
[361258585,1747399849917,-151.0,0.0001452,2]
[361258586,1747399849927,-151.0,0.0001452,2]
[361258587,1747399849936,-151.0,0.0001452,2]
[361258588,1747399849946,-151.0,0.0001452,2]
[361258589,1747399849955,-450.0,0.0001452,2]
[361258590,1747399849965,-917.392464,0.0001452,2]
[361258591,1747399849974,-917.392464,0.0001452,2]
[361258592,1747399849983,-450.0,0.0001452,2]
[361258593,1747399849993,-450.0,0.0001452,2]
[361258594,1747399850002,-450.0,0.0001452,2]
[361258595,1747399850012,-450.0,0.0001452,2]
[361258596,1747399850021,-532.35,0.0001452,2]
[361258597,1747399850030,-151.0,0.0001452,2]
[361258598,1747399850040,-151.0,0.0001452,2]
[361258599,1747399850050,-151.0,0.0001452,2]
[361258600,1747399850059,-1177.01,0.0001452,2]
[361258601,1747399850069,-478.05,0.0001452,2]
[361258602,1747399850078,-1645.83,0.0001452,2]
[361258603,1747399850088,-450.0,0.0001452,2]
[361258604,1747399850099,-776.8,0.0001452,2]
[361258605,1747399850108,-450.0,0.0001452,2]
[361258606,1747399850118,-450.0,0.0001452,2]
[361258607,1747399850127,-450.0,0.0001452,2]
[361258608,1747399850136,-531.85,0.0001452,2]
[361258609,1747399850146,-450.0,0.0001452,2]
[361258610,1747399850155,-450.0,0.0001452,2]
[361258611,1747399850166,-566.84,0.0001452,2]
[361258612,1747399850175,-151.0,0.0001452,2]
[361258613,1747399850185,-450.0,0.0001452,2]
[361258614,1747399850195,-450.0,0.0001452,2]
[361258615,1747399850204,-325.87371957,0.0001452,2]
[361258616,1747399850214,-450.0,0.0001452,2]
[361258617,1747399850223,-450.0,0.0001452,2]
[361258618,1747399850232,-151.0,0.0001452,2]
[361258619,1747399850242,-450.0,0.0001452,2]
[361258620,1747399850252,-450.0,0.0001452,2]
[361258621,1747399850261,-450.0,0.0001452,2]
[361258622,1747399850271,-450.0,0.0001452,2]
[361258623,1747399850281,-450.0,0.0001452,2]
[361258624,1747399850290,-245.49697863,0.0001452,2]
[361258625,1747399850300,-450.0,0.0001452,2]
[361258626,1747399850310,-1445.01,0.0001452,2]
[361258627,1747399850319,-450.0,0.0001452,2]
[361258628,1747399850328,-616.19,0.0001452,2]
[361258629,1747399850338,-151.0,0.0001452,2]
[361258630,1747399850347,-151.0,0.0001452,2]
[361258631,1747399850357,-450.0,0.00014657,2]
[361258632,1747399850367,-232.656731,0.00014657,2]
[361258633,1747399850377,-232.656731,0.00014657,2]
[361258634,1747399850386,-450.0,0.00014657,2]
[361258635,1747399850396,-450.0,0.00014657,2]
[361258636,1747399850406,-450.0,0.00014657,2]
[361258637,1747399850416,-450.0,0.00014657,2]
[361258638,1747399850425,-532.35,0.00014657,2]
[361258639,1747399850436,-1177.01,0.00014657,2]
[361258640,1747399850445,-478.05,0.00014657,2]
[361258641,1747399850454,-1645.83,0.00014657,2]
[361258642,1747399850464,-450.0,0.00014657,2]
[361258643,1747399850473,-776.8,0.00014657,2]
[361258644,1747399850482,-450.0,0.00014657,2]
[361258645,1747399850492,-450.0,0.00014657,2]
[361258646,1747399850502,-230.87201217,0.00014657,2]
[361258647,1747399850511,-531.85,0.00014657,2]
[361258648,1747399850520,-450.0,0.00014657,2]
[361258649,1747399850530,-450.0,0.00014657,2]
[361258650,1747399850539,-566.84,0.00014657,2]
[361258651,1747399850548,-450.0,0.00014657,2]
[361258652,1747399850557,-475.51188369,0.00014657,2]
[361258653,1747399850567,-450.0,0.00014657,2]
[361258654,1747399850576,-151.0,0.00014657,2]
[361258655,1747399850585,-151.0,0.00014657,2]
[361258656,1747399850595,-450.0,0.00014657,2]
[361258657,1747399850604,-450.0,0.00014657,2]
[361258658,1747399850614,-450.0,0.00014657,2]
[361258659,1747399850624,-450.0,0.00014657,2]
[361258660,1747399850633,-290.17946089,0.00014657,2]
[361258661,1747399850642,-574.05124218,0.00014657,2]
[361258662,1747399850652,-450.0,0.00014657,2]
[361258663,1747399850661,-1445.01,0.00014657,2]
[361258664,1747399850671,-450.0,0.00014657,2]
[361258665,1747399850680,-616.19,0.00014657,2]
[361258666,1747399850726,-151.0,0.00014794,2]
[361258667,1747399850736,-151.0,0.00014794,2]
[361258668,1747399850746,-151.0,0.00014794,2]
[361258669,1747399850756,-151.0,0.00014794,2]
[361258670,1747399850765,-151.0,0.00014794,2]
[361258671,1747399850775,-450.0,0.00014794,2]
[361258672,1747399850784,-917.392464,0.00014794,2]
[361258673,1747399850794,-917.392464,0.00014794,2]
[361258674,1747399850802,-450.0,0.00014794,2]
[361258675,1747399850811,-450.0,0.00014794,2]
[361258676,1747399850821,-450.0,0.00014794,2]
[361258677,1747399850830,-450.0,0.00014794,2]
[361258678,1747399850840,-532.35,0.00014794,2]
[361258679,1747399850850,-151.0,0.00014794,2]
[361258680,1747399850859,-1177.01,0.00014794,2]
[361258681,1747399850869,-478.05,0.00014794,2]
[361258682,1747399850878,-1645.83,0.00014794,2]
[361258683,1747399850888,-450.0,0.00014794,2]
[361258684,1747399850898,-776.8,0.00014794,2]
[361258685,1747399850907,-450.0,0.00014794,2]
[361258686,1747399850916,-450.0,0.00014794,2]
[361258687,1747399850926,-531.85,0.00014794,2]
[361258688,1747399850935,-450.0,0.00014794,2]
[361258689,1747399850944,-450.0,0.00014794,2]
[361258690,1747399850954,-566.84,0.00014794,2]
[361258691,1747399850963,-151.0,0.00014794,2]
[361258692,1747399850972,-450.0,0.00014794,2]
[361258693,1747399850982,-450.0,0.00014794,2]
[361258694,1747399850991,-450.0,0.00014794,2]
[361258695,1747399851000,-151.0,0.00014794,2]
[361258696,1747399851009,-450.0,0.00014794,2]
[361258697,1747399851019,-450.0,0.00014794,2]
[361258698,1747399851029,-450.0,0.00014794,2]
[361258699,1747399851038,-450.0,0.00014794,2]
[361258700,1747399851048,-1445.01,0.00014794,2]
[361258701,1747399851057,-450.0,0.00014794,2]
[361258702,1747399851068,-616.19,0.00014794,2]
[361258703,1747399851077,-151.0,0.00014794,2]
[361258704,1747399851087,-151.0,0.00014794,2]
[361258705,1747399851097,-1860.0,0.000148,2]
[361258706,1747399851106,-1445.1839872,0.00014814,2]
[361258707,1747399851116,-3000.0,0.00014886,4]
[361258708,1747399851126,-140304.99212309,0.00014889,2]
[361258709,1747399851263,-6132.93537498,0.00014889,2]
[361258710,1747399851276,-8887.79990112,0.00014889,2]
[361258711,1747400403281,3411.52826263,0.00027397,120]
[361258746,1747401032285,-5000.0,0.00012319,14]
[361258747,1747401032295,-300.0,0.00012694,2]
[361258748,1747401032304,-189.0,0.00012695,2]
[361258749,1747401032314,-300.0,0.00012695,2]
[361258750,1747401032326,-300.0,0.00012695,2]
[361258751,1747401032337,-1200.0,0.00012695,2]
[361258752,1747401032347,-24900.0,0.00012696,2]
[361258753,1747401032356,-6267.1656586,0.00012697,2]
[361258754,1747401032365,-50000.0,0.00013693,2]
[361258755,1747401032375,-389.45444027,0.00013693,2]
[361258756,1747401032384,-453.96169492,0.00013693,2]
[361258757,1747401032393,-500.0,0.00013693,2]
[361258758,1747401032402,-154.762587,0.00013693,2]
[361258759,1747401032412,-500.0,0.00013693,2]
[361258760,1747401032421,-500.0,0.00013693,2]
[361258761,1747401032431,-500.0,0.00013693,2]
[361258762,1747401032440,-270.49501627,0.00013693,2]
[361258793,1747401037716,-847.71209681,0.00013556,14]
[361258795,1747401037773,-4152.28790319,0.00013556,14]
[361258796,1747401037783,-229.50498373,0.00013693,2]
[361258797,1747401037793,-500.0,0.00013693,2]
[361258798,1747401037802,-500.0,0.00013693,2]
[361258799,1747401037812,-500.0,0.00013693,2]
[361258800,1747401037821,-500.0,0.00013693,2]
[361258801,1747401037830,-500.0,0.00013693,2]
[361258802,1747401037839,-489.50588171,0.00013693,2]
[361258804,1747401037849,-500.0,0.00013693,2]
[361258806,1747401037859,-500.0,0.00013693,2]
[361258807,1747401037868,-500.0,0.00013693,2]
[361258808,1747401037878,-500.0,0.00013693,2]
[361258809,1747401037887,-500.0,0.00013693,2]
[361258810,1747401037896,-473.94133035,0.00013693,2]
[361258811,1747401037906,-500.0,0.00013693,2]
[361258812,1747401037915,-223.75266598,0.00013693,2]
[361258813,1747401037925,-158.235783,0.00013693,2]
[361258814,1747401037934,-157.828059,0.00013693,2]
[361258815,1747401037943,-450.0,0.00013698,2]
[361258816,1747401037953,-450.0,0.00013698,2]
[361258817,1747401037962,-547.35,0.00013698,2]
[361258818,1747401037983,-450.0,0.00013698,2]
[361258819,1747401037993,-450.0,0.00013698,2]
[361258820,1747401038003,-450.0,0.00013698,2]
[361258821,1747401038013,-450.0,0.00013698,2]
[361258822,1747401038023,-450.0,0.00013698,2]
[361258823,1747401038033,-903.13,0.00013698,2]
[361258824,1747401038043,-450.0,0.00013698,2]
[361258825,1747401038052,-450.0,0.00013698,2]
[361258826,1747401038061,-735.63,0.00013698,2]
[361258827,1747401038071,-450.0,0.00013698,2]
[361258828,1747401038080,-485.5,0.00013698,2]
[361258829,1747401038090,-1028.64,0.00013698,2]
[361258830,1747401038100,-450.0,0.00013698,2]
[361258831,1747401038109,-450.0,0.00013698,2]
[361258832,1747401038119,-450.0,0.00013698,2]
[361258833,1747401038128,-450.0,0.00013698,2]
[361258834,1747401038138,-450.0,0.00013698,2]
[361258835,1747401038147,-450.0,0.00013698,2]
[361258836,1747401038157,-450.0,0.00013698,2]
[361258837,1747401038168,-450.0,0.00013698,2]
[361258838,1747401038191,-450.0,0.00013698,2]
[361258839,1747401038214,-450.0,0.00013698,2]
[361258840,1747401038236,-450.0,0.00013698,2]
[361258841,1747401038259,-450.0,0.00013698,2]
[361258842,1747401038279,-193.50068023,0.00013698,2]
[361258843,1747401038301,-450.0,0.00013698,2]
[361258844,1747401038323,-450.0,0.00013698,2]
[361258845,1747401038344,-450.0,0.00013698,2]
[361258846,1747401038366,-450.0,0.00013698,2]
[361258847,1747401038388,-450.0,0.00013698,2]
[361258848,1747401038410,-500.0,0.00013698,2]
[361258849,1747401038433,-685.481832,0.00013699,2]
[361258850,1747401038453,-193.83096357,0.00013699,2]
[361258851,1747401038463,-160.0,0.00013816,2]
[361258852,1747401038472,-160.0,0.00013816,2]
[361258853,1747401038483,-66.69168512,0.00013816,2]
[361258854,1747401038496,-93.30831488,0.00013816,2]
[361258855,1747401038506,-160.0,0.00013817,2]
[361258856,1747401038516,-160.0,0.00013817,2]
[361258857,1747401038525,-212.26722696,0.00013817,2]
[361258858,1747401038534,-41.10710041,0.00013817,2]
[361259016,1747401042818,-118.89289959,0.00013817,2]
[361259017,1747401042832,-998.24360331,0.00013817,2]
[361259018,1747401042842,-160.0,0.00013817,2]
[361259019,1747401042852,-422.39640784,0.00013817,2]
[361259020,1747401042862,-10037.46078926,0.00013817,2]
[361259021,1747401042929,-2082.2,0.00013817,2]
[361259034,1747401045849,-704.98,0.00013698,2]
[361259035,1747401045859,-300.86213667,0.00013817,2]
[361259036,1747401540813,-5000.0,0.00013406,2]
[361259037,1747401540839,-300.0,0.00013697,2]
[361259038,1747401540862,-450.0,0.00013698,2]
[361259039,1747401540887,-675.61,0.00013698,2]
[361259040,1747401540913,-450.0,0.00013698,2]
[361259041,1747401540937,-616.11,0.00013698,2]
[361259042,1747401540960,-450.0,0.00013698,2]
[361259043,1747401540983,-450.0,0.00013698,2]
[361259044,1747401541006,-450.0,0.00013698,2]
[361259045,1747401541028,-450.0,0.00013698,2]
[361259046,1747401541050,-450.0,0.00013698,2]
[361259047,1747401541073,-450.0,0.00013698,2]
[361259048,1747401541095,-345.53640455,0.00013698,2]
[361259049,1747401541118,-450.0,0.00013698,2]
[361259050,1747401541140,-564.90462378,0.00013698,2]
[361259051,1747401541164,-450.0,0.00013698,2]
[361259052,1747401541187,-450.0,0.00013698,2]
[361259053,1747401541210,-450.0,0.00013698,2]
[361259054,1747401541232,-450.0,0.00013698,2]
[361259055,1747401541254,-450.0,0.00013698,2]
[361259056,1747401541276,-450.0,0.00013698,2]
[361259057,1747401541299,-865.5,0.00013698,2]
[361259058,1747401541321,-450.0,0.00013698,2]
[361259059,1747401541343,-450.0,0.00013698,2]
[361259060,1747401541365,-450.0,0.00013698,2]
[361259061,1747401541387,-450.0,0.00013698,2]
[361259062,1747401541411,-450.0,0.00013698,2]
[361259063,1747401541434,-450.0,0.00013698,2]
[361259064,1747401541457,-178.79088514,0.00013735,2]
[361259065,1747401541477,-160.0,0.00013817,2]
[361259066,1747401541499,-160.0,0.00013817,2]
[361259067,1747401541520,-212.26722696,0.00013817,2]
[361259068,1747401541541,-160.0,0.00013817,2]
[361259069,1747401541563,-160.0,0.00013817,2]
[361259070,1747401541583,-422.39640784,0.00013817,2]
[361259071,1747401541606,-998.24360331,0.00013817,2]
[361259072,1747401541627,-160.0,0.00013817,2]
[361259073,1747401541649,-12631.88158148,0.00013819,2]
[361259074,1747401541671,-450.0,0.00013835,2]
[361259075,1747401541695,-450.0,0.00013835,2]
[361259076,1747401541717,-450.0,0.00013835,2]
[361259077,1747401541740,-675.61,0.00013835,2]
[361259078,1747401541762,-450.0,0.00013835,2]
[361259079,1747401541786,-616.11,0.00013835,2]
[361259080,1747401541817,-450.0,0.00013835,2]
[361259081,1747401541846,-450.0,0.00013835,2]
[361259082,1747401541870,-450.0,0.00013835,2]
[361259083,1747401541892,-450.0,0.00013835,2]
[361259084,1747401541916,-450.0,0.00013835,2]
[361259085,1747401541941,-450.0,0.00013835,2]
[361259086,1747401541965,-450.0,0.00013835,2]
[361259087,1747401541990,-450.0,0.00013835,2]
[361259088,1747401542012,-450.0,0.00013835,2]
[361259089,1747401542035,-450.0,0.00013835,2]
[361259090,1747401542058,-450.0,0.00013835,2]
[361259091,1747401542081,-450.0,0.00013835,2]
[361259092,1747401542103,-450.0,0.00013835,2]
[361259093,1747401542127,-865.5,0.00013835,2]
[361259094,1747401542149,-450.0,0.00013835,2]
[361259095,1747401542174,-450.0,0.00013835,2]
[361259096,1747401542197,-450.0,0.00013835,2]
[361259097,1747401542219,-252.53926694,0.00013835,2]
[361259107,1747402120460,-230.9036542,0.00010512,2]
[361259108,1747402125286,-224.13271885,0.00010512,2]
[361259109,1747402127628,-167.620862,0.00010512,2]
[361259110,1747402133270,-373.53925239,0.00010512,2]
[361259111,1747402135426,-197.02240587,0.00010512,2]
[361259112,1747402140246,-281.39316666,0.00010512,2]
[361259113,1747402141756,-151.9366327,0.00010512,2]
[361259114,1747402147180,-234.5840292,0.00010512,2]
[361259115,1747402151315,-247.94018899,0.00010512,2]
[361259116,1747402153344,-245.55683349,0.00010512,2]
[361259117,1747402157050,-286.84952252,0.00010512,2]
[361259120,1747402161431,-181.19864509,0.00010512,2]
[361259121,1747402164596,-423.1303243,0.00010512,2]
[361259122,1747402166390,-235.78575013,0.00010512,2]
[361259123,1747402169027,-162.30645893,0.00010512,2]
[361259124,1747402173016,-229.90412252,0.00010512,2]
[361259125,1747402175316,-210.27881232,0.00010512,2]
[361259126,1747402176940,-292.48014679,0.00010512,2]
[361259127,1747402181222,-394.64866672,0.00010512,2]